bitfinex/quotes_SOLUSD_20251024
["timestamp","ask_amount","ask_price","bid_price","bid_amount"]
[1761272615610,3.85466189,191.84,191.82,0.66]
[1761272615818,14.9018764,191.87,191.82,5.87310439]
[1761272616019,3.85584497,191.86,191.82,5.87310439]
[1761272616192,3.85584497,191.85,191.83,0.66]
[1761272616391,3.85584497,191.84,191.83,0.66]
[1761272616995,3.85584497,191.86,191.83,0.66]
[1761272617206,3.85584497,191.85,191.83,0.66]
[1761272617412,3.85584497,191.84,191.83,0.66]
[1761272617908,3.85584497,191.86,191.83,0.66]
[1761272618098,3.85584497,191.85,191.83,0.66]
[1761272618295,3.85584497,191.84,191.83,0.66]
[1761272618596,3.85584497,191.84,191.83,5.87277946]
[1761272618916,3.85584497,191.86,191.83,5.87277946]
[1761272619096,3.85584497,191.85,191.84,0.66]
[1761272619490,3.85584497,191.85,191.84,5.87259965]
[1761272619691,3.85584497,191.86,191.84,5.87259965]
[1761272620010,3.85584497,191.85,191.84,5.21259965]
[1761272620309,3.85584497,191.86,191.84,5.87259965]
[1761272620513,3.85584497,191.85,191.84,5.87259965]
[1761272620719,3.85584497,191.86,191.84,0.66]
[1761272620926,3.85584497,191.86,191.83,5.86294038]
[1761272621915,3.85584497,191.86,191.82,16.08969593]
[1761272622122,3.85584497,191.86,191.84,0.65]
[1761272622793,3.85584497,191.86,191.82,5.86322072]
[1761272622998,3.85584497,191.86,191.83,5.86283158]
[1761272623422,6.19876536,191.86,191.8,16.09005467]
[1761272623710,5.52876536,191.85,191.81,0.65]
[1761272623915,3.85584497,191.84,191.81,0.65]
[1761272624117,1.67292039,191.86,191.81,0.65]
[1761272624413,3.85332229,191.85,191.81,0.65]
[1761272626117,3.85332229,191.85,191.82,5.21322072]
[1761272626309,14.9018764,191.87,191.82,5.21322072]
[1761272626511,3.85175076,191.86,191.83,0.65]
[1761272627697,3.85175076,191.86,191.83,5.8628814]
[1761272628102,3.85175076,191.86,191.84,0.65]
[1761272629419,3.85175076,191.86,191.84,5.86265151]
[1761272629816,3.85175076,191.86,191.85,0.65]
[1761272630122,3.85083194,191.86,191.85,0.65]
[1761272630328,0.67,191.94,191.86,10.87647521]
[1761272630498,4.52084112,191.93,191.86,12.5493956]
[1761272630694,3.85084112,191.92,191.87,0.65]
[1761272631113,3.85084112,191.92,191.87,5.86166544]
[1761272631316,3.85084112,191.91,191.87,5.86166544]
[1761272631520,3.85084112,191.91,191.88,0.65]
[1761272633424,36.44,191.9,191.88,0.65]
[1761272635510,42.32106965,191.9,191.84,0.65]
[1761272635713,1.67292039,191.85,191.8,5.86373233]
[1761272635916,36.44,191.84,191.8,5.86373233]
[1761272637418,38.11292039,191.84,191.8,5.86373233]
[1761272637601,36.44,191.84,191.81,0.65]
[1761272638028,36.44,191.84,191.81,5.86337875]
[1761272640322,36.44,191.84,191.82,0.65]
[1761272642431,36.44,191.84,191.81,5.21331237]
[1761272642833,36.44,191.84,191.81,5.86331237]
[1761272644245,36.44,191.84,191.81,5.21331237]
[1761272644546,36.44,191.84,191.82,0.65]
[1761272646840,36.44,191.84,191.81,5.21331237]
[1761272647045,38.78292039,191.84,191.81,5.21331237]
[1761272647431,38.11292039,191.84,191.81,5.21331237]
[1761272647646,38.11292039,191.84,191.81,5.86331237]
[1761272647851,38.11292039,191.84,191.81,5.21331237]
[1761272647852,3.85273487,191.83,191.81,5.21331237]
[1761272648023,5.52565526,191.82,191.76,13.68675087]
[1761272648337,41.96565526,191.81,191.76,13.68675087]
[1761272648653,3.85273487,191.8,191.76,13.68675087]
[1761272648838,3.85273487,191.8,191.77,0.65]
[1761272649044,3.85273487,191.8,191.77,5.86441108]
[1761272649746,3.85273487,191.8,191.78,0.65]
[1761272650248,38.11292039,191.81,191.78,0.65]
[1761272650542,40.29472603,191.8,191.77,0.65]
[1761272650751,36.44,191.8,191.77,0.65]
[1761272651845,36.44,191.8,191.77,5.86441981]
[1761272652332,36.44,191.8,191.78,0.66]
[1761272652645,36.44,191.8,191.77,5.21441981]
[1761272653053,36.44,191.8,191.77,0.66]
[1761272653953,36.44,191.8,191.77,5.87441689]
[1761272654452,3.85820483,191.79,191.77,5.87441689]
[1761272655234,36.44,191.8,191.77,5.87441689]
[1761272655433,3.85764307,191.79,191.77,5.87441689]
[1761272655848,36.44,191.8,191.77,5.87441689]
[1761272656247,22.88,191.83,191.78,2.33292039]
[1761272656548,3.85780729,191.82,191.78,2.33292039]
[1761272656755,3.85780729,191.82,191.79,0.66]
[1761272657053,3.85780729,191.81,191.79,0.66]
[1761272657260,22.88,191.83,191.79,0.66]
[1761272657449,3.85804258,191.82,191.79,0.66]
[1761272657750,3.85804258,191.81,191.79,5.87403562]
[1761272657953,22.88,191.83,191.79,5.87403562]
[1761272658157,3.85793789,191.82,191.8,0.66]
[1761272658455,3.85793789,191.81,191.8,0.66]
[1761272658652,3.85793789,191.82,191.8,0.66]
[1761272658862,3.85793789,191.81,191.8,0.66]
[1761272659047,3.85793789,191.82,191.8,0.66]
[1761272659244,3.85793789,191.81,191.8,0.66]
[1761272659452,3.85793789,191.82,191.8,0.66]
[1761272659753,3.85793789,191.81,191.8,0.66]
[1761272660133,3.85793789,191.82,191.8,0.66]
[1761272660372,3.85793789,191.81,191.8,0.66]
[1761272661066,3.85793789,191.82,191.8,0.66]
[1761272661358,3.85793789,191.81,191.8,0.66]
[1761272661528,3.85793789,191.82,191.8,0.66]
[1761272661734,3.85793789,191.81,191.8,0.66]
[1761272662142,3.85793789,191.82,191.8,0.66]
[1761272662344,3.85793789,191.81,191.8,0.66]
[1761272662530,3.85793789,191.82,191.8,0.66]
[1761272662734,3.85793789,191.81,191.8,0.66]
[1761272663264,40.29793789,191.81,191.77,5.87455184]
[1761272663471,3.85793789,191.8,191.77,5.21455184]
[1761272663841,3.85793789,191.8,191.77,5.87455184]
[1761272664438,1.67292039,191.79,191.75,0.66]
[1761272664749,40.29642068,191.78,191.76,0.66]
[1761272665074,36.44,191.78,191.76,5.87477518]
[1761272665537,36.44,191.78,191.77,0.66]
[1761272666339,2.61264619,191.8,191.77,0.66]
[1761272666663,40.29492675,191.79,191.77,0.66]
[1761272666853,36.44,191.79,191.77,0.66]
[1761272667170,36.44,191.79,191.77,5.87446209]
[1761272667640,36.44,191.79,191.78,0.7]
[1761272667958,40.29460509,191.79,191.78,0.7]
[1761272669861,3.85460509,191.79,191.78,0.7]
[1761272670060,36.44,191.8,191.78,0.7]
[1761272670260,36.44,191.8,191.78,5.91422946]
[1761272672879,36.44,191.8,191.76,5.21485189]
[1761272673047,36.44,191.8,191.78,0.7]
[1761272674565,36.42,191.8,191.78,0.7]
[1761272675863,31.41559748,191.83,191.78,0.7]
[1761272676076,40.2727685,191.82,191.78,0.7]
[1761272676260,3.8527685,191.81,191.78,0.7]
[1761272676455,3.8527685,191.8,191.78,0.7]
[1761272676662,36.42,191.82,191.78,0.7]
[1761272676859,3.85391603,191.81,191.78,0.7]
[1761272677071,3.85391603,191.8,191.78,0.7]
[1761272677275,36.42,191.82,191.78,0.7]
[1761272677471,3.85504473,191.81,191.78,0.7]
[1761272677776,3.85504473,191.8,191.78,5.91428294]
[1761272678080,36.42,191.8,191.78,5.91428294]
[1761272678252,3.85626967,191.79,191.78,5.91428294]
[1761272678661,3.85626967,191.79,191.78,0.7]
[1761272678871,3.85626967,191.79,191.75,12.50158547]
[1761272680259,36.42,191.8,191.75,12.50158547]
[1761272680479,3.86019324,191.79,191.75,12.50158547]
[1761272680677,36.42,191.8,191.75,12.50158547]
[1761272680975,3.86019324,191.79,191.77,5.21457996]
[1761272681182,30.70559748,191.83,191.77,5.21457996]
[1761272681365,40.28035947,191.82,191.78,0.68]
[1761272681570,3.86035947,191.81,191.78,0.68]
[1761272681767,3.86035947,191.8,191.78,0.68]
[1761272681968,3.86035947,191.79,191.78,0.68]
[1761272682362,36.42,191.82,191.78,0.68]
[1761272682571,3.86008124,191.81,191.78,0.68]
[1761272682767,3.86008124,191.8,191.78,0.68]
[1761272682972,36.42,191.82,191.79,5.21403618]
[1761272683177,3.85987641,191.81,191.79,5.21403618]
[1761272683369,3.85987641,191.8,191.79,5.21403618]
[1761272683959,3.85987641,191.8,191.79,5.89403618]
[1761272684768,0.68,191.84,191.8,10.87647521]
[1761272684967,3.86057312,191.83,191.81,5.21349251]
[1761272685169,3.86057312,191.82,191.81,5.89349251]
[1761272685581,3.86057312,191.82,191.81,18.70261391]
[1761272685765,36.42,191.88,191.81,18.70261391]
[1761272685971,3.86109943,191.87,191.84,10.87647521]
[1761272686171,3.86109943,191.86,191.85,0.68]
[1761272686785,7.15374562,191.86,191.79,5.21377534]
[1761272686979,2.61264619,191.84,191.79,5.21377534]
[1761272687187,40.28109943,191.83,191.79,5.21377534]
[1761272687366,3.86109943,191.82,191.79,5.21377534]
[1761272687562,3.86109943,191.81,191.79,5.21377534]
[1761272687763,3.86109943,191.8,191.79,5.21377534]
[1761272687962,4.54109943,191.8,191.79,5.21377534]
[1761272688682,3.86109943,191.8,191.79,5.21377534]
[1761272688885,3.86109943,191.8,191.78,10.87647521]
[1761272689084,3.29264619,191.82,191.78,10.87647521]
[1761272689289,4.53729522,191.81,191.78,10.87647521]
[1761272689467,3.85729522,191.8,191.78,10.87647521]
[1761272689666,0.68,191.81,191.78,10.87647521]
[1761272689860,3.85755288,191.8,191.78,10.87647521]
[1761272690065,0.68,191.81,191.79,5.21403618]
[1761272690365,3.85765841,191.8,191.77,5.89433099]
[1761272690565,0.68,191.81,191.77,5.89433099]
[1761272690761,3.85814331,191.8,191.77,5.89433099]
[1761272690966,0.68,191.81,191.77,5.21433099]
[1761272691169,4.53793312,191.8,191.77,5.21433099]
[1761272691388,0.68,191.8,191.77,5.21433099]
[1761272691966,0.68,191.8,191.77,5.89433099]
[1761272692288,3.85876637,191.79,191.77,5.89433099]
[1761272692463,0.68,191.8,191.77,5.89433099]
[1761272692666,3.85866072,191.79,191.77,5.89433099]
[1761272692884,0.68,191.8,191.77,5.89433099]
[1761272693081,3.85876666,191.79,191.77,5.89433099]
[1761272693389,2.61264619,191.82,191.77,5.89433099]
[1761272693583,4.53881385,191.81,191.77,5.89433099]
[1761272693792,3.85881385,191.8,191.77,5.89433099]
[1761272693987,3.85881385,191.79,191.77,5.89433099]
[1761272694290,0.68,191.8,191.77,5.89433099]
[1761272694483,3.85876165,191.79,191.77,5.89433099]
[1761272694683,0.68,191.8,191.77,5.89433099]
[1761272694876,3.85876193,191.79,191.77,5.89433099]
[1761272695079,0.68,191.8,191.77,5.89433099]
[1761272695292,3.85886682,191.79,191.77,5.89433099]
[1761272695589,0.68,191.8,191.77,5.89433099]
[1761272695889,3.8586621,191.79,191.77,5.89433099]
[1761272696084,0.68,191.8,191.77,5.89433099]
[1761272696286,3.85866179,191.79,191.77,5.89433099]
[1761272696587,2.61264619,191.82,191.79,5.21403618]
[1761272696588,0.68,191.82,191.79,5.21403618]
[1761272696788,4.53846553,191.81,191.79,5.21403618]
[1761272696972,3.85846553,191.8,191.79,5.21403618]
[1761272697572,3.85846553,191.8,191.78,5.21430806]
[1761272697795,3.85846553,191.79,191.78,16.09078327]
[1761272698175,3.85846553,191.79,191.78,5.89430806]
[1761272699177,0.68,191.82,191.78,5.89430806]
[1761272699390,4.53855839,191.81,191.78,5.89430806]
[1761272699596,3.85855839,191.8,191.78,5.89430806]
[1761272699774,0.68,191.81,191.78,5.89430806]
[1761272700094,3.85855772,191.8,191.78,0.68]
[1761272700296,37.1,191.81,191.78,0.68]
[1761272700594,3.85858427,191.8,191.77,5.21457996]
[1761272700808,3.85782225,191.79,191.77,5.21457996]
[1761272700974,3.85782225,191.78,191.77,16.09105517]
[1761272701175,3.85782225,191.78,191.76,5.21484594]
[1761272701404,4.53575735,191.77,191.76,16.09132115]
[1761272701790,3.85575735,191.77,191.76,16.09132115]
[1761272702001,3.85575735,191.77,191.76,5.21484594]
[1761272702185,4.53575735,191.77,191.74,5.21523506]
[1761272702399,7.14726815,191.76,191.71,11.55647521]
[1761272702702,3.85462196,191.75,191.71,11.55647521]
[1761272702905,3.85462196,191.74,191.72,0.68]
[1761272703101,0.68,191.75,191.72,0.68]
[1761272703411,3.85332264,191.74,191.71,10.87647521]
[1761272703619,3.85332264,191.74,191.72,5.21593991]
[1761272703902,4.53332264,191.74,191.72,5.21593991]
[1761272704105,0.68,191.74,191.72,5.21593991]
[1761272704303,3.85285279,191.75,191.72,5.21593991]
[1761272704499,0.68,191.75,191.72,5.21593991]
[1761272704694,2.61264619,191.76,191.72,5.21593991]
[1761272704886,3.8526122,191.75,191.72,5.21593991]
[1761272705092,0.68,191.75,191.72,5.21593991]
[1761272705291,0.68,191.74,191.72,5.21593991]
[1761272705682,2.61264619,191.76,191.72,5.21593991]
[1761272705884,3.85174755,191.75,191.73,5.89565096]
[1761272706092,0.68,191.76,191.73,5.89565096]
[1761272706292,3.85084,191.75,191.73,5.89565096]
[1761272707387,0.68,191.76,191.73,5.89565096]
[1761272708018,3.85073102,191.75,191.73,5.89565096]
[1761272708225,0.68,191.76,191.72,5.21593991]
[1761272708518,4.53037297,191.76,191.72,5.89593991]
[1761272709324,3.85037297,191.75,191.72,5.89593991]
[1761272710713,4.53037297,191.75,191.72,5.89593991]
[1761272710908,3.85037297,191.75,191.72,5.89593991]
[1761272711220,0.69,191.75,191.72,5.89593991]
[1761272711525,4.53756159,191.75,191.72,5.89593991]
[1761272712021,3.84756159,191.75,191.73,14.2091214]
[1761272712323,2.61264619,191.82,191.75,10.87647521]
[1761272712497,40.95771966,191.81,191.76,2.61264619]
[1761272712803,3.84771966,191.8,191.76,0.72]
[1761272713000,3.84771966,191.79,191.75,11.59647521]
[1761272713209,3.84771966,191.78,191.75,10.87647521]
[1761272713516,3.84771966,191.77,191.75,11.59647521]
[1761272713819,0.69,191.79,191.75,11.59647521]
[1761272713996,3.84764262,191.78,191.75,11.59647521]
[1761272714196,3.84764262,191.77,191.76,5.93485189]
[1761272714411,3.84764262,191.79,191.76,5.93485189]
[1761272714613,3.84764262,191.78,191.76,5.93485189]
[1761272714815,3.84764262,191.77,191.76,5.93485189]
[1761272715497,37.11,191.8,191.76,5.93485189]
[1761272715706,4.53757987,191.79,191.76,5.93485189]
[1761272716018,3.84757987,191.78,191.76,5.93485189]
[1761272717710,3.84757987,191.78,191.76,5.21485189]
[1761272718013,3.84757987,191.78,191.75,5.21512385]
[1761272718220,37.11,191.8,191.76,0.72]
[1761272718419,14.5,191.77,191.76,0.72]
[1761272718809,14.5,191.77,191.75,16.09159906]
[1761272719025,14.5,191.77,191.75,16.81159906]
[1761272720624,14.5,191.77,191.75,16.09159906]
[1761272720829,14.5,191.77,191.76,5.93485189]
[1761272721127,14.5,191.77,191.76,5.21485189]
[1761272721925,14.5,191.77,191.76,5.93485189]
[1761272723127,14.5,191.77,191.76,19.42397329]
[1761272723301,14.5,191.77,191.76,16.8113271]
[1761272725640,36.42,191.8,191.77,10.87647521]
[1761272725822,36.42,191.8,191.77,14.2091214]
[1761272726013,36.42,191.8,191.78,0.72]
[1761272726605,36.42,191.8,191.79,5.21403618]
[1761272726902,40.26807102,191.8,191.79,5.21403618]
[1761272727203,40.26807102,191.8,191.79,5.93403618]
[1761272727400,3.84807102,191.8,191.79,16.81051139]
[1761272727831,3.84807102,191.82,191.79,16.81051139]
[1761272728135,0.7,191.83,191.79,16.81051139]
[1761272728136,3.84807102,191.81,191.8,0.67]
[1761272728529,3.84817906,191.82,191.81,5.21349251]
[1761272728710,3.84817906,191.82,191.8,0.67]
[1761272729029,3.84817906,191.81,191.8,10.87647521]
[1761272729220,36.4,191.83,191.8,10.87647521]
[1761272729423,3.84824226,191.82,191.81,0.67]
[1761272730549,3.84824226,191.82,191.8,11.54647521]
[1761272731414,3.84824226,191.82,191.81,5.21349251]
[1761272735025,3.84824226,191.82,191.81,5.88349251]
[1761272735225,3.84824226,191.82,191.81,5.21349251]
[1761272736716,4.54824226,191.82,191.81,5.21349251]
[1761272737131,4.54824226,191.82,191.8,16.09021118]
[1761272737330,4.54824226,191.81,191.8,16.09021118]
[1761272738435,0.7,191.81,191.8,16.09021118]
[1761272738641,4.54824226,191.81,191.8,16.09021118]
[1761272739249,3.84824226,191.81,191.8,16.09021118]
[1761272740648,4.54824226,191.81,191.8,16.09021118]
[1761272740845,4.54824226,191.81,191.77,10.87647521]
[1761272740846,0.7,191.81,191.77,10.87647521]
[1761272741038,4.51824226,191.81,191.78,10.87647521]
[1761272741347,4.51824226,191.81,191.79,5.21403618]
[1761272741645,3.84824226,191.8,191.79,5.21403618]
[1761272742845,4.51824226,191.8,191.79,5.21403618]
[1761272743042,3.84824226,191.81,191.79,5.21403618]
[1761272743249,3.84824226,191.8,191.79,5.21403618]
[1761272743429,0.67,191.81,191.79,5.21403618]
[1761272743629,4.51893383,191.81,191.79,5.21403618]
[1761272743845,7.2,191.8,191.79,5.21403618]
[1761272745945,11.0483603,191.8,191.79,5.21403618]
[1761272746336,7.2,191.8,191.79,5.21403618]
[1761272749151,11.04898604,191.8,191.79,5.21403618]
[1761272749449,11.04898604,191.8,191.79,5.92403618]
[1761272750028,11.04898604,191.8,191.79,5.21403618]
[1761272755055,11.05033785,191.8,191.79,5.21403618]
[1761272761268,11.72033785,191.8,191.74,10.87647521]
[1761272761467,4.52033785,191.79,191.74,12.54775859]
[1761272761637,3.85033785,191.78,191.74,12.54775859]
[1761272761839,3.85033785,191.77,191.74,16.80187105]
[1761272762137,3.85033785,191.76,191.74,16.80187105]
[1761272762335,0.67,191.77,191.74,16.80187105]
[1761272762559,3.85311043,191.76,191.74,16.80187105]
[1761272762763,0.67,191.77,191.74,16.80187105]
[1761272763065,3.85310969,191.76,191.74,16.80187105]
[1761272763245,0.67,191.77,191.74,16.80187105]
[1761272763438,3.8529803,191.76,191.74,16.80187105]
[1761272763642,0.67,191.77,191.74,16.80187105]
[1761272763843,3.85298118,191.76,191.74,16.80187105]
[1761272764163,36.38,191.79,191.74,16.09187105]
[1761272764460,4.52287455,191.78,191.76,5.21485189]
[1761272764640,3.85287455,191.77,191.76,5.21485189]
[1761272764839,4.52287455,191.77,191.76,5.21485189]
[1761272765447,4.52287455,191.77,191.75,5.21512385]
[1761272765647,3.85287455,191.76,191.75,16.09159906]
[1761272766049,3.85287455,191.76,191.75,16.80159906]
[1761272766654,3.85287455,191.76,191.75,16.09159906]
[1761272768762,3.85287455,191.77,191.75,16.80159906]
[1761272768957,3.85287455,191.76,191.75,16.80159906]
[1761272769260,0.67,191.78,191.75,18.47288244]
[1761272769467,3.8518934,191.77,191.75,16.80159906]
[1761272769767,0.67,191.78,191.75,16.80159906]
[1761272769948,3.85189316,191.77,191.75,16.80159906]
[1761272770147,0.67,191.78,191.75,16.80159906]
[1761272770341,3.8518863,191.77,191.75,16.09159906]
[1761272770546,0.67,191.78,191.75,16.09159906]
[1761272770753,4.52167559,191.77,191.75,16.09159906]
[1761272771049,0.67,191.77,191.75,16.09159906]
[1761272773274,0.66,191.78,191.75,16.80159906]
[1761272773460,3.85051304,191.77,191.75,16.80159906]
[1761272773662,0.66,191.78,191.75,16.80159906]
[1761272773960,3.85040969,191.77,191.75,16.80159906]
[1761272774149,0.66,191.78,191.75,16.80159906]
[1761272774349,3.85036844,191.77,191.75,16.80159906]
[1761272774546,0.66,191.78,191.75,16.80159906]
[1761272774750,3.85015362,191.77,191.75,16.80159906]
[1761272774967,0.66,191.78,191.75,16.80159906]
[1761272775158,3.85106825,191.77,191.75,16.80159906]
[1761272775363,1.67128338,191.77,191.72,10.87647521]
[1761272775560,6.18307075,191.76,191.72,5.21593991]
[1761272775760,40.23178737,191.75,191.71,16.09266768]
[1761272775960,5.52253056,191.74,191.68,10.87647521]
[1761272776167,3.8509665,191.73,191.68,10.87647521]
[1761272776362,0.66,191.73,191.68,10.87647521]
[1761272776556,0.66,191.72,191.68,16.09350359]
[1761272776760,41.88114325,191.71,191.66,10.87647521]
[1761272776977,41.88114325,191.71,191.65,16.09432024]
[1761272776978,3.84985987,191.7,191.65,16.09432024]
[1761272777283,3.84985987,191.69,191.65,16.09432024]
[1761272777464,4.50985987,191.69,191.65,16.80432024]
[1761272777776,37.02,191.71,191.66,0.71]
[1761272777975,3.84649633,191.7,191.66,2.38128338]
[1761272778154,4.50649633,191.7,191.66,2.38128338]
[1761272778361,0.66,191.69,191.66,2.38128338]
[1761272778560,0.66,191.69,191.66,0.71]
[1761272778775,0.66,191.69,191.67,5.21730056]
[1761272784281,0.66,191.69,191.66,5.21757278]
[1761272785872,0.66,191.69,191.66,5.92757278]
[1761272786688,0.66,191.69,191.67,10.87647521]
[1761272787273,36.38,191.7,191.67,10.87647521]
[1761272787475,36.38,191.7,191.68,0.68]
[1761272787861,36.38,191.7,191.67,16.09371302]
[1761272788069,37.06,191.7,191.67,16.77371302]
[1761272788586,37.06,191.7,191.67,16.09371302]
[1761272788774,36.38,191.7,191.67,16.09371302]
[1761272789083,0.68,191.69,191.67,16.09371302]
[1761272789667,36.38,191.7,191.67,16.77371302]
[1761272789873,37.06,191.7,191.67,16.77371302]
[1761272790283,36.38,191.7,191.67,16.09371302]
[1761272790491,0.68,191.76,191.69,13.49117279]
[1761272790680,2.61469758,191.74,191.69,10.87647521]
[1761272790986,0.68,191.75,191.69,10.87647521]
[1761272790987,2.61469758,191.73,191.69,10.87647521]
[1761272791484,36.38,191.74,191.69,11.55647521]
[1761272791689,37.06,191.74,191.7,0.68]
[1761272792067,37.06,191.74,191.7,5.89635458]
[1761272792382,0.68,191.73,191.7,5.89635458]
[1761272796768,36.38,191.74,191.71,14.17117279]
[1761272796975,36.38,191.74,191.72,0.68]
[1761272797278,37.04,191.76,191.72,0.68]
[1761272798776,37.04,191.76,191.73,5.89566786]
[1761272798976,0.68,191.75,191.73,5.21566786]
[1761272800384,0.68,191.75,191.72,5.21593991]
[1761272800584,0.68,191.75,191.72,5.89593991]
[1761272803594,37.02,191.76,191.72,5.89593991]
[1761272803998,0.66,191.75,191.72,5.89593991]
[1761272805074,36.36,191.76,191.74,5.21539584]
[1761272805273,37.02,191.76,191.74,5.21539584]
[1761272805798,36.36,191.76,191.74,5.21539584]
[1761272805997,0.66,191.75,191.74,5.21539584]
[1761272806485,0.66,191.75,191.73,5.21566786]
[1761272808685,36.36,191.76,191.73,5.93566786]
[1761272808892,37.02,191.76,191.73,5.93566786]
[1761272819982,37.0,191.76,191.73,5.93566786]
[1761272822887,2.61469758,191.77,191.74,0.72]
[1761272823083,118.08998649,191.81,191.73,5.93566786]
[1761272823290,40.84294144,191.8,191.74,0.72]
[1761272823497,6.45763902,191.79,191.74,0.72]
[1761272823702,3.84294144,191.78,191.74,0.72]
[1761272823911,4.50294144,191.78,191.74,0.72]
[1761272824102,0.66,191.77,191.74,0.72]
[1761272824823,0.66,191.77,191.75,5.21512385]
[1761272825422,36.34,191.77,191.75,5.93512385]
[1761272825704,37.0,191.79,191.75,8.54982143]
[1761272825906,3.84359254,191.78,191.75,8.54982143]
[1761272826104,4.50359254,191.78,191.75,8.54982143]
[1761272826293,3.84359254,191.78,191.75,20.86763107]
[1761272826501,3.84359254,191.78,191.76,0.72]
[1761272826697,4.50359254,191.78,191.76,0.72]
[1761272826900,3.84359254,191.78,191.77,5.21457996]
[1761272827591,37.0,191.79,191.77,5.21457996]
[1761272827790,0.66,191.82,191.78,0.72]
[1761272827998,40.18473251,191.81,191.78,0.72]
[1761272828199,3.84473251,191.8,191.78,0.72]
[1761272828388,3.84473251,191.79,191.78,0.72]
[1761272828908,3.84473251,191.79,191.78,5.93430806]
[1761272829086,3.84473251,191.8,191.78,5.93430806]
[1761272829286,3.84473251,191.79,191.78,5.93430806]
[1761272829492,36.34,191.81,191.79,0.72]
[1761272829700,3.84544588,191.8,191.79,0.72]
[1761272829900,36.34,191.81,191.79,0.72]
[1761272830798,37.0,191.81,191.78,5.21430806]
[1761272830998,0.66,191.8,191.78,5.21430806]
[1761272831400,0.66,191.8,191.78,5.88430806]
[1761272831610,37.02,191.81,191.78,5.88430806]
[1761272832410,36.34,191.81,191.8,5.21376433]
[1761272832594,3.84599136,191.81,191.8,5.21376433]
[1761272833118,4.52599136,191.81,191.8,5.21376433]
[1761272833915,4.52599136,191.81,191.79,5.21403618]
[1761272834425,3.84599136,191.81,191.79,5.88403618]
[1761272835111,3.84599136,191.81,191.8,0.67]
[1761272835316,3.84599136,191.81,191.78,5.88430806]
[1761272835620,3.84599136,191.81,191.79,0.67]
[1761272835925,4.52599136,191.81,191.78,5.21430806]
[1761272836112,3.84599136,191.81,191.78,5.21430806]
[1761272836314,3.84599136,191.81,191.79,5.8838247]
[1761272838599,3.84599136,191.81,191.78,5.21430806]
[1761272838819,4.52599136,191.81,191.78,5.21430806]
[1761272839138,0.68,191.81,191.78,5.88430806]
[1761272839626,4.52521794,191.81,191.78,5.88430806]
[1761272841719,3.84521794,191.81,191.79,0.67]
[1761272843024,3.84521794,191.81,191.8,5.21376433]
[1761272843326,36.34,191.82,191.8,5.21376433]
[1761272843706,36.34,191.82,191.81,0.67]
[1761272843907,3.84431374,191.82,191.81,0.67]
[1761272844114,3.84431374,191.82,191.81,5.88349251]
[1761272844311,3.84431374,191.83,191.81,5.88349251]
[1761272844512,3.84431374,191.82,191.81,5.88349251]
[1761272844916,3.84431374,191.83,191.81,5.88349251]
[1761272845228,3.84431374,191.82,191.81,5.88349251]
[1761272845427,4.52431374,191.83,191.81,5.88349251]
[1761272845614,4.52431374,191.83,191.82,0.67]
[1761272845615,3.84431374,191.83,191.82,0.67]
[1761272846336,3.84431374,191.83,191.82,3.28469758]
[1761272846537,36.32,191.87,191.82,3.28469758]
[1761272846837,36.32,191.87,191.81,10.87647521]
[1761272846838,3.84320679,191.86,191.84,2.61469758]
[1761272847038,3.84320679,191.85,191.83,3.28469758]
[1761272847241,36.32,191.87,191.83,3.28469758]
[1761272847429,3.84191619,191.86,191.84,0.72]
[1761272847634,3.84191619,191.86,191.85,5.21240552]
[1761272848529,3.84191619,191.86,191.85,5.93240552]
[1761272849630,3.84191619,191.86,191.85,19.42357831]
[1761272849918,50.24797692,191.89,191.86,10.87647521]
[1761272850110,3.84048982,191.88,191.86,11.59647521]
[1761272850319,3.84048982,191.88,191.86,14.21117279]
[1761272850512,3.84048982,191.88,191.87,0.72]
[1761272850712,13.25797692,191.89,191.87,0.72]
[1761272850915,13.25797692,191.89,191.88,6.88129705]
[1761272851313,13.25797692,191.89,191.88,7.60129705]
[1761272851542,36.32,191.91,191.88,5.93159057]
[1761272851713,3.83785282,191.9,191.89,0.72]
[1761272852148,36.32,191.91,191.89,5.93131898]
[1761272852727,36.32,191.91,191.89,5.21131898]